[Event "Titled Tuesday Blitz August 08 Early 2023"]
[White "Sagita, Catur Adi"]
[Black "Vovk, Orest"]
[WhiteFideId "7104618"]
[BlackFideId "14113490"]
[WhiteElo "2651"]
[BlackElo "2488"]
[Result "1-0"]
[Round "5"]
[TimeControl "180+1"]
[Date "2023.08.08"]
[WhiteClock "0:00:11"]
[BlackClock "0:00:06"]
[Board "85"]

1. d4 {[%clk 0:03:00]}  h6 {[%clk 0:02:38]} 2. c4 {[%clk 0:02:59]}  g5 {[%clk 0:02:29]} 3. Nc3 {[%clk 0:02:56]}  Bg7 {[%clk 0:02:23]} 4. e4 {[%clk 0:02:55]}  c5 {[%clk 0:02:21]} 5. Nge2 {[%clk 0:02:52]}  Nc6 {[%clk 0:02:17]} 6. Be3 {[%clk 0:02:48]}  cxd4 {[%clk 0:02:16]} 7. Nxd4 {[%clk 0:02:49]}  d6 {[%clk 0:02:16]} 8. Be2 {[%clk 0:02:47]}  Nf6 {[%clk 0:02:11]} 9. O-O {[%clk 0:02:46]}  Bd7 {[%clk 0:01:58]} 10. Rc1 {[%clk 0:02:43]}  Ne5 {[%clk 0:01:45]} 11. f3 {[%clk 0:02:33]}  Ng6 {[%clk 0:01:40]} 12. Qd2 {[%clk 0:02:31]}  Nh5 {[%clk 0:01:29]} 13. Rfd1 {[%clk 0:02:30]}  Nhf4 {[%clk 0:01:24]} 14. Bf1 {[%clk 0:02:28]}  Be5 {[%clk 0:01:20]} 15. Nd5 {[%clk 0:02:18]}  Nxd5 {[%clk 0:01:16]} 16. cxd5 {[%clk 0:02:17]}  O-O {[%clk 0:01:06]} 17. g3 {[%clk 0:02:02]}  Kh7 {[%clk 0:00:56]} 18. Kh1 {[%clk 0:01:41]}  e6 {[%clk 0:00:56]} 19. dxe6 {[%clk 0:01:29]}  fxe6 {[%clk 0:00:56]} 20. Bg2 {[%clk 0:01:28]}  Qf6 {[%clk 0:00:53]} 21. Rc7 {[%clk 0:01:24]}  Rf7 {[%clk 0:00:46]} 22. Rxb7 {[%clk 0:01:21]}  Raf8 {[%clk 0:00:41]} 23. Rxa7 {[%clk 0:01:19]}  Bc8 {[%clk 0:00:24]} 24. Rxf7+ {[%clk 0:01:14]}  Rxf7 {[%clk 0:00:24]} 25. b4 {[%clk 0:01:13]}  Bb7 {[%clk 0:00:24]} 26. b5 {[%clk 0:01:09]}  d5 {[%clk 0:00:23]} 27. Nc6 {[%clk 0:00:57]}  Bxc6 {[%clk 0:00:19]} 28. bxc6 {[%clk 0:00:58]}  dxe4 {[%clk 0:00:17]} 29. fxe4 {[%clk 0:00:56]}  Nf4 {[%clk 0:00:15]} 30. Rf1 {[%clk 0:00:37]}  h5 {[%clk 0:00:03]} 31. gxf4 {[%clk 0:00:28]}  gxf4 {[%clk 0:00:03]} 32. Qe2 {[%clk 0:00:29]}  Qh4 {[%clk 0:00:02]} 33. Bf2 {[%clk 0:00:28]}  Qg5 {[%clk 0:00:01]} 34. Qf3 {[%clk 0:00:26]}  Kh6 {[%clk 0:00:02]} 35. Rg1 {[%clk 0:00:26]}  Rg7 {[%clk 0:00:02]} 36. Bh3 {[%clk 0:00:26]}  Qf6 {[%clk 0:00:02]} 37. Rxg7 {[%clk 0:00:23]}  Qxg7 {[%clk 0:00:03]} 38. Bxe6 {[%clk 0:00:22]}  Qe7 {[%clk 0:00:03]} 39. Bd5 {[%clk 0:00:20]}  Qb4 {[%clk 0:00:03]} 40. Kg2 {[%clk 0:00:20]}  Qf8 {[%clk 0:00:03]} 41. h4 {[%clk 0:00:19]}  Qg7+ {[%clk 0:00:03]} 42. Kh2 {[%clk 0:00:19]}  Qf8 {[%clk 0:00:03]} 43. a4 {[%clk 0:00:19]}  Qg7 {[%clk 0:00:03]} 44. a5 {[%clk 0:00:18]}  Qg4 {[%clk 0:00:03]} 45. Qxg4 {[%clk 0:00:17]}  hxg4 {[%clk 0:00:04]} 46. a6 {[%clk 0:00:13]}  g3+ {[%clk 0:00:03]} 47. Bxg3 {[%clk 0:00:13]}  fxg3+ {[%clk 0:00:03]} 48. Kg2 {[%clk 0:00:14]}  Bb8 {[%clk 0:00:04]} 49. a7 {[%clk 0:00:14]}  Bxa7 {[%clk 0:00:04]} 50. c7 {[%clk 0:00:14]}  Be3 {[%clk 0:00:04]} 51. c8=Q {[%clk 0:00:14]}  Kh5 {[%clk 0:00:05]} 52. Qf5+ {[%clk 0:00:14]}  Kxh4 {[%clk 0:00:05]} 53. Qh3+ {[%clk 0:00:13]}  Kg5 {[%clk 0:00:05]} 54. Qxg3+ {[%clk 0:00:13]}  Kh5 {[%clk 0:00:05]} 55. Qxe3 {[%clk 0:00:12]}  Kh4 {[%clk 0:00:06]} 56. Qh6+ {[%clk 0:00:11]}  Kg4 {[%clk 0:00:06]} 57. Be6# {[%clk 0:00:11]} 1-0


[Site "https://www.chess.com"]

[Event "Titled Tuesday Blitz August 08 Early 2023"]
[White "Saya, Ethan"]
[Black "Jumanov, Elbek"]
[WhiteFideId "26095181"]
[BlackFideId "14202905"]
[WhiteElo "2633"]
[BlackElo "2427"]
[Result "1/2-1/2"]
[Round "5"]
[TimeControl "180+1"]
[Date "2023.08.08"]
[WhiteClock "0:00:02"]
[BlackClock "0:00:13"]
[Board "88"]

1. d4 {[%clk 0:03:00]}  Nf6 {[%clk 0:02:58]} 2. c4 {[%clk 0:03:00]}  c5 {[%clk 0:02:56]} 3. d5 {[%clk 0:02:57]}  b5 {[%clk 0:02:56]} 4. cxb5 {[%clk 0:02:57]}  a6 {[%clk 0:02:56]} 5. bxa6 {[%clk 0:02:56]}  g6 {[%clk 0:02:54]} 6. Nc3 {[%clk 0:02:55]}  Bxa6 {[%clk 0:02:55]} 7. e4 {[%clk 0:02:49]}  Bxf1 {[%clk 0:02:53]} 8. Kxf1 {[%clk 0:02:50]}  d6 {[%clk 0:02:54]} 9. g3 {[%clk 0:02:48]}  Bg7 {[%clk 0:02:54]} 10. Kg2 {[%clk 0:02:48]}  O-O {[%clk 0:02:54]} 11. Nf3 {[%clk 0:02:47]}  Nbd7 {[%clk 0:02:52]} 12. Qc2 {[%clk 0:02:38]}  Qa5 {[%clk 0:02:49]} 13. Bd2 {[%clk 0:02:36]}  Qa6 {[%clk 0:02:40]} 14. a4 {[%clk 0:02:28]}  Rfb8 {[%clk 0:02:39]} 15. Nb5 {[%clk 0:02:22]}  Rb7 {[%clk 0:02:37]} 16. Bc3 {[%clk 0:02:20]}  Ng4 {[%clk 0:02:18]} 17. Bxg7 {[%clk 0:02:17]}  Kxg7 {[%clk 0:02:19]} 18. b3 {[%clk 0:02:06]}  Qa5 {[%clk 0:01:59]} 19. Rac1 {[%clk 0:01:54]}  Qb4 {[%clk 0:01:56]} 20. Qc3+ {[%clk 0:01:52]}  Qxc3 {[%clk 0:01:55]} 21. Rxc3 {[%clk 0:01:52]}  f6 {[%clk 0:01:19]} 22. Nd2 {[%clk 0:01:46]}  Nb6 {[%clk 0:01:12]} 23. h3 {[%clk 0:01:19]}  Ne5 {[%clk 0:01:10]} 24. f4 {[%clk 0:01:19]}  Ned7 {[%clk 0:01:09]} 25. g4 {[%clk 0:01:04]}  f5 {[%clk 0:01:03]} 26. Rd3 {[%clk 0:00:52]}  Nf6 {[%clk 0:00:57]} 27. Nc3 {[%clk 0:00:31]}  fxe4 {[%clk 0:00:56]} 28. Ndxe4 {[%clk 0:00:30]}  c4 {[%clk 0:00:43]} 29. bxc4 {[%clk 0:00:26]}  Nxc4 {[%clk 0:00:44]} 30. Nxf6 {[%clk 0:00:22]}  Kxf6 {[%clk 0:00:40]} 31. Ne4+ {[%clk 0:00:16]}  Kg7 {[%clk 0:00:40]} 32. Ra1 {[%clk 0:00:13]}  Rb4 {[%clk 0:00:22]} 33. Nc3 {[%clk 0:00:11]}  Rb3 {[%clk 0:00:17]} 34. Rf3 {[%clk 0:00:09]}  Nd2 {[%clk 0:00:17]} 35. Rg3 {[%clk 0:00:06]}  Rf8 {[%clk 0:00:11]} 36. Ne4 {[%clk 0:00:06]}  Rb2 {[%clk 0:00:10]} 37. Nxd2 {[%clk 0:00:05]}  Rxd2+ {[%clk 0:00:11]} 38. Kf3 {[%clk 0:00:06]}  Rd3+ {[%clk 0:00:11]} 39. Kg2 {[%clk 0:00:05]}  Rd2+ {[%clk 0:00:11]} 40. Kf3 {[%clk 0:00:06]}  Rd3+ {[%clk 0:00:12]} 41. Kg2 {[%clk 0:00:06]}  Rd4 {[%clk 0:00:12]} 42. a5 {[%clk 0:00:06]}  Rxd5 {[%clk 0:00:11]} 43. a6 {[%clk 0:00:05]}  Ra8 {[%clk 0:00:12]} 44. a7 {[%clk 0:00:05]}  Rb5 {[%clk 0:00:12]} 45. Re3 {[%clk 0:00:05]}  Rb7 {[%clk 0:00:12]} 46. Rea3 {[%clk 0:00:05]}  Kf7 {[%clk 0:00:12]} 47. Kf3 {[%clk 0:00:05]}  Rc7 {[%clk 0:00:12]} 48. Ke4 {[%clk 0:00:06]}  Rb7 {[%clk 0:00:13]} 49. Ra6 {[%clk 0:00:06]}  Rc7 {[%clk 0:00:12]} 50. R1a4 {[%clk 0:00:06]}  Rc5 {[%clk 0:00:10]} 51. R6a5 {[%clk 0:00:06]}  Rc7 {[%clk 0:00:10]} 52. Kf3 {[%clk 0:00:05]}  Rb7 {[%clk 0:00:10]} 53. Ra3 {[%clk 0:00:05]}  Rc7 {[%clk 0:00:10]} 54. h4 {[%clk 0:00:06]}  h6 {[%clk 0:00:10]} 55. h5 {[%clk 0:00:06]}  Rb7 {[%clk 0:00:09]} 56. hxg6+ {[%clk 0:00:06]}  Kxg6 {[%clk 0:00:10]} 57. Ra6 {[%clk 0:00:06]}  Kf7 {[%clk 0:00:10]} 58. Kg3 {[%clk 0:00:06]}  Kg6 {[%clk 0:00:08]} 59. Kh4 {[%clk 0:00:07]}  Rc7 {[%clk 0:00:08]} 60. R6a5 {[%clk 0:00:07]}  Rb7 {[%clk 0:00:08]} 61. f5+ {[%clk 0:00:07]}  Kf6 {[%clk 0:00:08]} 62. Kh5 {[%clk 0:00:08]}  Kg7 {[%clk 0:00:08]} 63. Ra2 {[%clk 0:00:07]}  Rb3 {[%clk 0:00:08]} 64. Kh4 {[%clk 0:00:06]}  Rc3 {[%clk 0:00:08]} 65. Re2 {[%clk 0:00:06]}  Rc7 {[%clk 0:00:08]} 66. Rea2 {[%clk 0:00:05]}  Rc1 {[%clk 0:00:08]} 67. Ra6 {[%clk 0:00:05]}  Rh1+ {[%clk 0:00:08]} 68. Kg3 {[%clk 0:00:06]}  Rg1+ {[%clk 0:00:09]} 69. Rg2 {[%clk 0:00:07]}  Rc1 {[%clk 0:00:10]} 70. Re2 {[%clk 0:00:06]}  Rc7 {[%clk 0:00:10]} 71. Rea2 {[%clk 0:00:06]}  Rc3+ {[%clk 0:00:11]} 72. Kh4 {[%clk 0:00:06]}  Rc4 {[%clk 0:00:11]} 73. R6a4 {[%clk 0:00:06]}  Rc7 {[%clk 0:00:12]} 74. Kh5 {[%clk 0:00:06]}  Rc1 {[%clk 0:00:12]} 75. Kh4 {[%clk 0:00:05]}  Rh1+ {[%clk 0:00:11]} 76. Kg3 {[%clk 0:00:06]}  Rg1+ {[%clk 0:00:12]} 77. Kf2 {[%clk 0:00:06]}  Rc1 {[%clk 0:00:13]} 78. Ke3 {[%clk 0:00:06]}  Rc7 {[%clk 0:00:13]} 79. Ke4 {[%clk 0:00:06]}  Rc5 {[%clk 0:00:13]} 80. Kd4 {[%clk 0:00:05]}  Rc7 {[%clk 0:00:13]} 81. Kd5 {[%clk 0:00:05]}  Kf7 {[%clk 0:00:13]} 82. Ra6 {[%clk 0:00:04]}  Kf6 {[%clk 0:00:13]} 83. Ke4 {[%clk 0:00:04]}  Rc4+ {[%clk 0:00:12]} 84. Kf3 {[%clk 0:00:04]}  Rc3+ {[%clk 0:00:13]} 85. Kg2 {[%clk 0:00:03]}  Rc4 {[%clk 0:00:13]} 86. Kg3 {[%clk 0:00:03]}  Rc3+ {[%clk 0:00:13]} 87. Kf2 {[%clk 0:00:03]}  Rc4 {[%clk 0:00:13]} 88. Kf3 {[%clk 0:00:04]}  Kg5 {[%clk 0:00:12]} 89. Rb2 {[%clk 0:00:04]}  Rc3+ {[%clk 0:00:12]} 90. Ke4 {[%clk 0:00:04]}  Rc7 {[%clk 0:00:13]} 91. Rba2 {[%clk 0:00:04]}  Rc4+ {[%clk 0:00:12]} 92. Kd5 {[%clk 0:00:04]}  Rc5+ {[%clk 0:00:13]} 93. Ke6 {[%clk 0:00:04]}  Kxg4 {[%clk 0:00:13]} 94. Kxe7 {[%clk 0:00:03]}  Kxf5 {[%clk 0:00:14]} 95. Kxd6 {[%clk 0:00:04]}  Rb5 {[%clk 0:00:14]} 96. R2a5 {[%clk 0:00:03]}  Rxa5 {[%clk 0:00:12]} 97. Rxa5+ {[%clk 0:00:04]}  Kg4 {[%clk 0:00:11]} 98. Kc7 {[%clk 0:00:04]}  h5 {[%clk 0:00:12]} 99. Kb7 {[%clk 0:00:04]}  Rxa7+ {[%clk 0:00:12]} 100. Rxa7 {[%clk 0:00:04]}  h4 {[%clk 0:00:13]} 101. Ra4+ {[%clk 0:00:04]}  Kg3 {[%clk 0:00:13]} 102. Kc6 {[%clk 0:00:04]}  h3 {[%clk 0:00:12]} 103. Kd5 {[%clk 0:00:05]}  Kg2 {[%clk 0:00:13]} 104. Ke4 {[%clk 0:00:04]}  h2 {[%clk 0:00:13]} 105. Ra2+ {[%clk 0:00:05]}  Kg3 {[%clk 0:00:12]} 106. Ra3+ {[%clk 0:00:02]}  Kg2 {[%clk 0:00:12]} 107. Ra2+ {[%clk 0:00:03]}  Kg3 {[%clk 0:00:12]} 108. Ra1 {[%clk 0:00:03]}  Kg2 {[%clk 0:00:13]} 109. Ra2+ {[%clk 0:00:02]} 1/2-1/2


[Site "https://www.chess.com"]

[Event "Titled Tuesday Blitz August 08 Early 2023"]
[White "Nathan, Nitish"]
[Black "NovoselovRoman"]
[WhiteFideId "30927870"]
[WhiteElo "2394"]
[BlackElo "2614"]
[Result "0-1"]
[Round "5"]
[TimeControl "180+1"]
[Date "2023.08.08"]
[WhiteClock "0:00:35"]
[BlackClock "0:00:25"]
[Board "90"]

1. d4 {[%clk 0:03:00]}  d5 {[%clk 0:02:59]} 2. Bf4 {[%clk 0:03:00]}  e6 {[%clk 0:02:58]} 3. e3 {[%clk 0:03:00]}  Bd6 {[%clk 0:02:58]} 4. Bg3 {[%clk 0:03:00]}  Ne7 {[%clk 0:02:58]} 5. Nf3 {[%clk 0:03:00]}  c5 {[%clk 0:02:57]} 6. c3 {[%clk 0:02:59]}  Nbc6 {[%clk 0:02:57]} 7. Nbd2 {[%clk 0:02:57]}  cxd4 {[%clk 0:02:38]} 8. exd4 {[%clk 0:02:56]}  Nf5 {[%clk 0:02:38]} 9. Bd3 {[%clk 0:02:56]}  h5 {[%clk 0:02:35]} 10. Bxd6 {[%clk 0:02:55]}  Nxd6 {[%clk 0:02:27]} 11. h4 {[%clk 0:02:54]}  Bd7 {[%clk 0:02:13]} 12. Qe2 {[%clk 0:02:53]}  Qf6 {[%clk 0:02:02]} 13. Ne5 {[%clk 0:02:52]}  Nf5 {[%clk 0:01:55]} 14. Bxf5 {[%clk 0:02:44]}  Qxf5 {[%clk 0:01:55]} 15. Nxd7 {[%clk 0:02:44]}  Kxd7 {[%clk 0:01:56]} 16. Qf3 {[%clk 0:02:43]}  Ne7 {[%clk 0:01:36]} 17. Qxf5 {[%clk 0:02:40]}  Nxf5 {[%clk 0:01:37]} 18. Nf3 {[%clk 0:02:40]}  f6 {[%clk 0:01:37]} 19. Kd2 {[%clk 0:02:38]}  Nd6 {[%clk 0:01:36]} 20. Rhf1 {[%clk 0:02:32]}  b5 {[%clk 0:01:34]} 21. a4 {[%clk 0:02:31]}  b4 {[%clk 0:01:30]} 22. cxb4 {[%clk 0:02:20]}  Rab8 {[%clk 0:01:26]} 23. b5 {[%clk 0:02:18]}  a6 {[%clk 0:01:26]} 24. bxa6 {[%clk 0:02:11]}  Rxb2+ {[%clk 0:01:24]} 25. Kc3 {[%clk 0:02:11]}  Rhb8 {[%clk 0:01:19]} 26. Nd2 {[%clk 0:01:26]}  Ne4+ {[%clk 0:01:13]} 27. Kd3 {[%clk 0:01:20]}  Rxd2+ {[%clk 0:01:11]} 28. Ke3 {[%clk 0:01:20]}  Rb3+ {[%clk 0:00:34]} 29. Kf4 {[%clk 0:01:19]}  Nxf2 {[%clk 0:00:28]} 30. Rxf2 {[%clk 0:00:35]}  Rxd4# {[%clk 0:00:25]} 0-1


[Site "https://www.chess.com"]

[Event "Titled Tuesday Blitz August 08 Early 2023"]
[White "Mazurkiewicz, Michal"]
[Black "Malek, Jan"]
[WhiteFideId "1124943"]
[BlackFideId "21864080"]
[WhiteElo "2380"]
[BlackElo "2602"]
[Result "0-1"]
[Round "5"]
[TimeControl "180+1"]
[Date "2023.08.08"]
[WhiteClock "0:00:13"]
[BlackClock "0:01:38"]
[Board "91"]

1. e4 {[%clk 0:03:00]}  b6 {[%clk 0:02:58]} 2. g3 {[%clk 0:02:59]}  Bb7 {[%clk 0:02:57]} 3. Bg2 {[%clk 0:02:59]}  e6 {[%clk 0:02:57]} 4. d3 {[%clk 0:02:58]}  g6 {[%clk 0:02:56]} 5. Nf3 {[%clk 0:02:58]}  Bg7 {[%clk 0:02:57]} 6. O-O {[%clk 0:02:58]}  Ne7 {[%clk 0:02:57]} 7. Re1 {[%clk 0:02:55]}  d6 {[%clk 0:02:58]} 8. d4 {[%clk 0:02:55]}  Nd7 {[%clk 0:02:58]} 9. c4 {[%clk 0:02:55]}  a6 {[%clk 0:02:58]} 10. Nc3 {[%clk 0:02:56]}  h6 {[%clk 0:02:57]} 11. Be3 {[%clk 0:02:53]}  g5 {[%clk 0:02:57]} 12. h3 {[%clk 0:02:50]}  Ng6 {[%clk 0:02:56]} 13. b4 {[%clk 0:02:45]}  Qe7 {[%clk 0:02:50]} 14. Qc2 {[%clk 0:02:02]}  O-O {[%clk 0:02:43]} 15. Nh2 {[%clk 0:01:42]}  c5 {[%clk 0:02:35]} 16. bxc5 {[%clk 0:01:33]}  bxc5 {[%clk 0:02:33]} 17. d5 {[%clk 0:01:34]}  Nde5 {[%clk 0:02:27]} 18. Na4 {[%clk 0:01:28]}  Rab8 {[%clk 0:02:16]} 19. Rab1 {[%clk 0:01:25]}  Ba8 {[%clk 0:02:15]} 20. f4 {[%clk 0:01:24]}  gxf4 {[%clk 0:02:12]} 21. gxf4 {[%clk 0:01:25]}  Nd7 {[%clk 0:02:12]} 22. f5 {[%clk 0:00:37]}  Nge5 {[%clk 0:02:02]} 23. Ng4 {[%clk 0:00:33]}  Nxg4 {[%clk 0:01:59]} 24. hxg4 {[%clk 0:00:34]}  Ne5 {[%clk 0:01:59]} 25. Qe2 {[%clk 0:00:29]}  Qh4 {[%clk 0:01:54]} 26. Rxb8 {[%clk 0:00:12]}  Rxb8 {[%clk 0:01:53]} 27. fxe6 {[%clk 0:00:12]}  fxe6 {[%clk 0:01:51]} 28. dxe6 {[%clk 0:00:13]}  Nxg4 {[%clk 0:01:50]} 29. Bf4 {[%clk 0:00:13]}  Bd4+ {[%clk 0:01:47]} 30. Kf1 {[%clk 0:00:14]}  Rf8 {[%clk 0:01:46]} 31. Qf3 {[%clk 0:00:12]}  Nh2+ {[%clk 0:01:39]} 32. Bxh2 {[%clk 0:00:13]}  Rxf3+ {[%clk 0:01:38]} 33. Bxf3 {[%clk 0:00:13]}  Qf2# {[%clk 0:01:38]} 0-1


[Site "https://www.chess.com"]

[Event "Titled Tuesday Blitz August 08 Early 2023"]
[White "Lacasa Diaz, Jose Antonio"]
[Black "Aslanov, Umid"]
[WhiteFideId "2203375"]
[BlackFideId "13412620"]
[WhiteElo "2380"]
[BlackElo "2598"]
[Result "1-0"]
[Round "5"]
[TimeControl "180+1"]
[Date "2023.08.08"]
[WhiteClock "0:00:22"]
[BlackClock "0:00:05"]
[Board "92"]

1. Nf3 {[%clk 0:02:55]}  d5 {[%clk 0:03:00]} 2. e3 {[%clk 0:02:55]}  Nf6 {[%clk 0:02:59]} 3. c4 {[%clk 0:02:54]}  e6 {[%clk 0:02:58]} 4. b3 {[%clk 0:02:54]}  dxc4 {[%clk 0:02:58]} 5. bxc4 {[%clk 0:02:52]}  c5 {[%clk 0:02:59]} 6. Be2 {[%clk 0:02:48]}  b6 {[%clk 0:02:58]} 7. O-O {[%clk 0:02:48]}  Bd6 {[%clk 0:02:56]} 8. Nc3 {[%clk 0:02:48]}  O-O {[%clk 0:02:54]} 9. d4 {[%clk 0:02:48]}  cxd4 {[%clk 0:02:54]} 10. exd4 {[%clk 0:02:49]}  Bb7 {[%clk 0:02:54]} 11. Bb2 {[%clk 0:02:45]}  Nc6 {[%clk 0:02:53]} 12. Rc1 {[%clk 0:02:37]}  Rc8 {[%clk 0:02:50]} 13. d5 {[%clk 0:02:31]}  exd5 {[%clk 0:02:46]} 14. cxd5 {[%clk 0:02:29]}  Ne7 {[%clk 0:02:45]} 15. Nb5 {[%clk 0:02:18]}  Nfxd5 {[%clk 0:02:36]} 16. Rxc8 {[%clk 0:02:09]}  Bxc8 {[%clk 0:02:36]} 17. Nxa7 {[%clk 0:02:07]}  Bg4 {[%clk 0:02:30]} 18. Nb5 {[%clk 0:02:00]}  Bc5 {[%clk 0:02:20]} 19. h3 {[%clk 0:01:55]}  Bh5 {[%clk 0:02:17]} 20. Ne5 {[%clk 0:01:49]}  Bxe2 {[%clk 0:02:15]} 21. Qxe2 {[%clk 0:01:50]}  Qc8 {[%clk 0:02:00]} 22. Nd3 {[%clk 0:01:35]}  Qf5 {[%clk 0:01:52]} 23. Nxc5 {[%clk 0:01:30]}  bxc5 {[%clk 0:01:53]} 24. Rc1 {[%clk 0:01:28]}  Qc8 {[%clk 0:00:35]} 25. Nd6 {[%clk 0:01:11]}  Qd7 {[%clk 0:00:27]} 26. Ne4 {[%clk 0:01:02]}  Nf4 {[%clk 0:00:27]} 27. Qf3 {[%clk 0:00:50]}  Nd3 {[%clk 0:00:17]} 28. Rd1 {[%clk 0:00:22]}  c4 {[%clk 0:00:16]} 29. Nf6+ {[%clk 0:00:21]}  gxf6 {[%clk 0:00:05]} 30. Qxf6 {[%clk 0:00:22]} 1-0


[Site "https://www.chess.com"]

[Event "Titled Tuesday Blitz August 08 Early 2023"]
[White "Megaranto, Susanto"]
[Black "KorolDimitriy75"]
[WhiteFideId "7101384"]
[WhiteElo "2970"]
[BlackElo "2385"]
[Result "1-0"]
[Round "5"]
[TimeControl "180+1"]
[Date "2023.08.08"]
[WhiteClock "0:01:30"]
[BlackClock "0:00:00"]
[Board "93"]

1. e4 {[%clk 0:03:00]}  c5 {[%clk 0:02:58]} 2. Nf3 {[%clk 0:02:58]}  d6 {[%clk 0:02:58]} 3. d4 {[%clk 0:02:56]}  cxd4 {[%clk 0:02:59]} 4. Nxd4 {[%clk 0:02:55]}  Nf6 {[%clk 0:02:59]} 5. Nc3 {[%clk 0:02:56]}  g6 {[%clk 0:03:00]} 6. f4 {[%clk 0:02:51]}  Nbd7 {[%clk 0:02:59]} 7. Nf3 {[%clk 0:02:45]}  Bg7 {[%clk 0:02:57]} 8. e5 {[%clk 0:02:44]}  Ng4 {[%clk 0:01:53]} 9. h3 {[%clk 0:02:36]}  Nh6 {[%clk 0:01:52]} 10. Bc4 {[%clk 0:02:27]}  O-O {[%clk 0:01:27]} 11. e6 {[%clk 0:02:24]}  fxe6 {[%clk 0:01:19]} 12. Bxe6+ {[%clk 0:02:25]}  Kh8 {[%clk 0:01:20]} 13. O-O {[%clk 0:02:25]}  Nc5 {[%clk 0:01:03]} 14. Bc4 {[%clk 0:02:24]}  Nf5 {[%clk 0:00:55]} 15. Ng5 {[%clk 0:02:19]}  e6 {[%clk 0:00:41]} 16. Kh2 {[%clk 0:02:16]}  d5 {[%clk 0:00:40]} 17. Bd3 {[%clk 0:02:13]}  h6 {[%clk 0:00:33]} 18. Nf3 {[%clk 0:02:11]}  Nxd3 {[%clk 0:00:21]} 19. Qxd3 {[%clk 0:02:12]}  Bd7 {[%clk 0:00:20]} 20. Bd2 {[%clk 0:02:11]}  Be8 {[%clk 0:00:19]} 21. Rae1 {[%clk 0:02:10]}  Bf7 {[%clk 0:00:19]} 22. Ne5 {[%clk 0:02:10]}  Kh7 {[%clk 0:00:19]} 23. Nxf7 {[%clk 0:02:08]}  Rxf7 {[%clk 0:00:19]} 24. Rxe6 {[%clk 0:02:08]}  d4 {[%clk 0:00:17]} 25. Ne4 {[%clk 0:01:57]}  Qd5 {[%clk 0:00:17]} 26. Qb3 {[%clk 0:01:58]}  Rd8 {[%clk 0:00:12]} 27. Qxd5 {[%clk 0:01:51]}  Rxd5 {[%clk 0:00:13]} 28. Rf3 {[%clk 0:01:46]}  Rc7 {[%clk 0:00:11]} 29. c3 {[%clk 0:01:45]}  dxc3 {[%clk 0:00:11]} 30. Bxc3 {[%clk 0:01:46]}  Bxc3 {[%clk 0:00:09]} 31. bxc3 {[%clk 0:01:47]}  Ra5 {[%clk 0:00:09]} 32. Rf2 {[%clk 0:01:45]}  Ra4 {[%clk 0:00:08]} 33. g4 {[%clk 0:01:44]}  Nh4 {[%clk 0:00:06]} 34. Nf6+ {[%clk 0:01:42]}  Kg7 {[%clk 0:00:06]} 35. Ne8+ {[%clk 0:01:41]}  Kf7 {[%clk 0:00:06]} 36. Nxc7 {[%clk 0:01:42]}  Rc4 {[%clk 0:00:05]} 37. f5 {[%clk 0:01:33]}  Rxc7 {[%clk 0:00:04]} 38. Rd6 {[%clk 0:01:31]}  g5 {[%clk 0:00:03]} 39. Rxh6 {[%clk 0:01:28]}  Rxc3 {[%clk 0:00:03]} 40. Rh7+ {[%clk 0:01:28]}  Kf6 {[%clk 0:00:03]} 41. Rxb7 {[%clk 0:01:29]}  Nf3+ {[%clk 0:00:02]} 42. Rxf3 {[%clk 0:01:29]}  Rxf3 {[%clk 0:00:00]} 43. Rxa7 {[%clk 0:01:30]} 1-0


[Site "https://www.chess.com"]

[Event "Titled Tuesday Blitz August 08 Early 2023"]
[White "Javakhadze, Zurab"]
[Black "Sidletskyi, Ivan"]
[WhiteFideId "13603647"]
[BlackFideId "14156024"]
[WhiteElo "2798"]
[BlackElo "2518"]
[Result "1/2-1/2"]
[Round "5"]
[TimeControl "180+1"]
[Date "2023.08.08"]
[WhiteClock "0:00:02"]
[BlackClock "0:00:10"]
[Board "94"]

1. d4 {[%clk 0:03:00]}  Nf6 {[%clk 0:02:55]} 2. c4 {[%clk 0:02:54]}  e6 {[%clk 0:02:55]} 3. Nf3 {[%clk 0:02:55]}  d5 {[%clk 0:02:55]} 4. Qc2 {[%clk 0:02:50]}  Nbd7 {[%clk 0:02:46]} 5. Bg5 {[%clk 0:02:48]}  h6 {[%clk 0:02:44]} 6. Bh4 {[%clk 0:02:47]}  c6 {[%clk 0:02:43]} 7. e3 {[%clk 0:02:35]}  g5 {[%clk 0:02:36]} 8. Bg3 {[%clk 0:02:34]}  Ne4 {[%clk 0:02:37]} 9. Nc3 {[%clk 0:02:31]}  f5 {[%clk 0:02:37]} 10. Be2 {[%clk 0:02:17]}  Nxg3 {[%clk 0:02:27]} 11. hxg3 {[%clk 0:02:17]}  Qf6 {[%clk 0:02:28]} 12. O-O-O {[%clk 0:02:00]}  Bd6 {[%clk 0:02:23]} 13. cxd5 {[%clk 0:01:54]}  exd5 {[%clk 0:02:12]} 14. Bd3 {[%clk 0:01:48]}  Nb6 {[%clk 0:02:11]} 15. Rh5 {[%clk 0:01:41]}  Be6 {[%clk 0:02:07]} 16. Rdh1 {[%clk 0:01:37]}  O-O-O {[%clk 0:02:07]} 17. Nb5 {[%clk 0:01:37]}  Bb8 {[%clk 0:01:53]} 18. a4 {[%clk 0:01:11]}  Nc4 {[%clk 0:01:50]} 19. Bxc4 {[%clk 0:01:03]}  dxc4 {[%clk 0:01:50]} 20. Nc3 {[%clk 0:01:04]}  Bc7 {[%clk 0:01:24]} 21. Nd2 {[%clk 0:00:41]}  Bf7 {[%clk 0:00:48]} 22. R5h2 {[%clk 0:00:41]}  h5 {[%clk 0:00:49]} 23. Ncb1 {[%clk 0:00:35]}  h4 {[%clk 0:00:45]} 24. Nxc4 {[%clk 0:00:32]}  hxg3 {[%clk 0:00:46]} 25. fxg3 {[%clk 0:00:25]}  Rxh2 {[%clk 0:00:45]} 26. Rxh2 {[%clk 0:00:25]}  Bxg3 {[%clk 0:00:45]} 27. Rh1 {[%clk 0:00:25]}  f4 {[%clk 0:00:39]} 28. Nbd2 {[%clk 0:00:10]}  fxe3 {[%clk 0:00:37]} 29. Ne4 {[%clk 0:00:10]}  Qxd4 {[%clk 0:00:33]} 30. Nxg3 {[%clk 0:00:04]}  Qxc4 {[%clk 0:00:33]} 31. Re1 {[%clk 0:00:04]}  Qxc2+ {[%clk 0:00:30]} 32. Kxc2 {[%clk 0:00:04]}  Rd2+ {[%clk 0:00:31]} 33. Kc3 {[%clk 0:00:05]}  Rxg2 {[%clk 0:00:29]} 34. Rxe3 {[%clk 0:00:05]}  Bd5 {[%clk 0:00:29]} 35. Nf5 {[%clk 0:00:04]}  Kc7 {[%clk 0:00:25]} 36. Re7+ {[%clk 0:00:04]}  Kb6 {[%clk 0:00:25]} 37. b4 {[%clk 0:00:04]}  a5 {[%clk 0:00:24]} 38. Nd6 {[%clk 0:00:01]}  axb4+ {[%clk 0:00:23]} 39. Kxb4 {[%clk 0:00:02]}  c5+ {[%clk 0:00:23]} 40. Kc3 {[%clk 0:00:03]}  Rg3+ {[%clk 0:00:22]} 41. Kd2 {[%clk 0:00:03]}  Ra3 {[%clk 0:00:22]} 42. Nc8+ {[%clk 0:00:02]}  Ka5 {[%clk 0:00:19]} 43. Re5 {[%clk 0:00:02]}  Bc6 {[%clk 0:00:16]} 44. Rxc5+ {[%clk 0:00:03]}  Kxa4 {[%clk 0:00:17]} 45. Nb6+ {[%clk 0:00:03]}  Kb4 {[%clk 0:00:17]} 46. Rxg5 {[%clk 0:00:04]}  Ra2+ {[%clk 0:00:17]} 47. Kc1 {[%clk 0:00:04]}  Rf2 {[%clk 0:00:18]} 48. Rg3 {[%clk 0:00:04]}  Bb5 {[%clk 0:00:17]} 49. Nd5+ {[%clk 0:00:05]}  Kc5 {[%clk 0:00:18]} 50. Nc3 {[%clk 0:00:04]}  Rf8 {[%clk 0:00:17]} 51. Ne4+ {[%clk 0:00:05]}  Kb6 {[%clk 0:00:18]} 52. Rg6+ {[%clk 0:00:05]}  Bc6 {[%clk 0:00:18]} 53. Nc3 {[%clk 0:00:05]}  Ka5 {[%clk 0:00:19]} 54. Rg5+ {[%clk 0:00:05]}  b5 {[%clk 0:00:19]} 55. Kb2 {[%clk 0:00:05]}  Rf2+ {[%clk 0:00:18]} 56. Kb3 {[%clk 0:00:05]}  Rf3 {[%clk 0:00:19]} 57. Kb2 {[%clk 0:00:06]}  Bd7 {[%clk 0:00:17]} 58. Rd5 {[%clk 0:00:05]}  Be8 {[%clk 0:00:16]} 59. Re5 {[%clk 0:00:06]}  Bd7 {[%clk 0:00:11]} 60. Rd5 {[%clk 0:00:05]}  Be8 {[%clk 0:00:11]} 61. Re5 {[%clk 0:00:06]}  Bd7 {[%clk 0:00:12]} 62. Ne4 {[%clk 0:00:06]}  Kb4 {[%clk 0:00:10]} 63. Nd2 {[%clk 0:00:06]}  Rf2 {[%clk 0:00:09]} 64. Re4+ {[%clk 0:00:06]}  Kc5 {[%clk 0:00:10]} 65. Kc3 {[%clk 0:00:06]}  b4+ {[%clk 0:00:08]} 66. Rxb4 {[%clk 0:00:03]}  Rxd2 {[%clk 0:00:09]} 67. Rc4+ {[%clk 0:00:03]}  Kd5 {[%clk 0:00:09]} 68. Kxd2 {[%clk 0:00:02]}  Kxc4 {[%clk 0:00:10]} 1/2-1/2


[Site "https://www.chess.com"]